fUST/lending_fUST_20240822
["ID","MTS","AMOUNT","RATE_DAILY","PERIOD"]
[335560704,1724329841445,-334.287562,0.00018847,2]
[335560705,1724329841456,-334.287562,0.00018847,2]
[335560706,1724329841465,-318.642441,0.00018847,2]
[335560707,1724329841474,-318.642441,0.00018847,2]
[335560708,1724329841484,-200.863161,0.00018847,2]
[335560709,1724329841494,-200.863161,0.00018847,2]
[335560710,1724329841503,-151.847524,0.00018847,2]
[335560711,1724329841513,-151.0,0.00018847,2]
[335560712,1724329841522,-250.984325,0.00018847,2]
[335560713,1724329841532,-322.082181,0.00018847,2]
[335560714,1724329841542,-322.082181,0.00018847,2]
[335560715,1724329841552,-151.0,0.00018847,2]
[335560716,1724329841562,-201.058946,0.00018847,2]
[335560717,1724329841571,-201.058946,0.00018847,2]
[335560718,1724329841582,-151.0,0.00018847,2]
[335560719,1724329841592,-151.0,0.00018847,2]
[335560720,1724329841602,-151.0,0.00018847,2]
[335560721,1724329841612,-235.893729,0.00018847,2]
[335560722,1724329841621,-151.0,0.00018847,2]
[335560723,1724329841631,-240.041279,0.00018847,2]
[335560724,1724329841640,-240.041279,0.00018847,2]
[335560725,1724329841650,-151.0,0.00018847,2]
[335560726,1724329841660,-272.590238,0.00018847,2]
[335560727,1724329841670,-272.590238,0.00018847,2]
[335560728,1724329841679,-151.0,0.00018848,2]
[335560729,1724329841689,-334.287562,0.00018848,2]
[335560730,1724329841699,-334.287562,0.00018848,2]
[335560731,1724329841709,-318.642441,0.00018848,2]
[335560732,1724329841718,-318.642441,0.00018848,2]
[335560733,1724329841728,-200.863161,0.00018848,2]
[335560734,1724329841738,-200.863161,0.00018848,2]
[335560735,1724329841748,-151.0,0.00018848,2]
[335560736,1724329841758,-322.082181,0.00018848,2]
[335560737,1724329841768,-322.082181,0.00018848,2]
[335560738,1724329841777,-261.149498,0.00018848,2]
[335560739,1724329841787,-201.058946,0.00018848,2]
[335560740,1724329841797,-201.058946,0.00018848,2]
[335560741,1724329841806,-151.0,0.00018848,2]
[335560742,1724329841816,-151.0,0.00018848,2]
[335560743,1724329841826,-151.0,0.00018848,2]
[335560744,1724329841838,-151.0,0.00018848,2]
[335560745,1724329841847,-240.041279,0.00018848,2]
[335560746,1724329841856,-240.041279,0.00018848,2]
[335560747,1724329841866,-151.0,0.00018848,2]
[335560748,1724329841876,-272.590238,0.00018848,2]
[335560749,1724329841886,-272.590238,0.00018848,2]
[335560750,1724329841895,-2404.59961886,0.00018851,2]
[335560751,1724329841905,-151.0,0.00018858,2]
[335560752,1724329841915,-156.066786,0.00018858,2]
[335560753,1724329841926,-812.529899,0.00018858,2]
[335560754,1724329841940,-812.529899,0.00018858,2]
[335560755,1724329841949,-151.784815,0.00018858,2]
[335560756,1724329841960,-174.134418,0.00018858,2]
[335560757,1724329841970,-174.134418,0.00018858,2]
[335560758,1724329841980,-167.093676,0.00018858,2]
[335560759,1724329841990,-151.0,0.00018858,2]
[335560760,1724329842000,-167.093676,0.00018858,2]
[335560761,1724329842012,-570.290646,0.00018858,2]
[335560762,1724329842023,-570.290646,0.00018858,2]
[335560763,1724329842034,-664.99075,0.00018858,2]
[335560764,1724329842046,-664.99075,0.00018858,2]
[335560765,1724329842057,-151.0,0.00018858,2]
[335560766,1724329842067,-334.287562,0.00018858,2]
[335560767,1724329842079,-334.287562,0.00018858,2]
[335560768,1724329842091,-318.642441,0.00018858,2]
[335560769,1724329842100,-318.642441,0.00018858,2]
[335560770,1724329842110,-200.863161,0.00018858,2]
[335560771,1724329842120,-200.863161,0.00018858,2]
[335560772,1724329842131,-151.0,0.00018858,2]
[335560773,1724329842140,-322.082181,0.00018858,2]
[335560774,1724329842152,-322.082181,0.00018858,2]
[335560775,1724329842163,-201.058946,0.00018858,2]
[335560776,1724329842173,-201.058946,0.00018858,2]
[335560777,1724329842182,-151.0,0.00018858,2]
[335560778,1724329842192,-291.317981,0.00018858,2]
[335560779,1724329842202,-151.0,0.00018858,2]
[335560780,1724329842212,-151.0,0.00018858,2]
[335560781,1724329842222,-240.041279,0.00018858,2]
[335560782,1724329842231,-240.041279,0.00018858,2]
[335560783,1724329842240,-151.0,0.00018858,2]
[335560784,1724329842250,-272.590238,0.00018858,2]
[335560785,1724329842260,-272.590238,0.00018858,2]
[335560786,1724329842269,-363.37702097,0.0001889,2]
[335560787,1724329842279,-150.112233,0.000189,2]
[335560788,1724329842289,-8450.04200445,0.00018941,2]
[335560789,1724329842298,-500.0,0.00018944,2]
[335560790,1724329842308,-500.0,0.00018944,2]
[335560791,1724329842317,-500.0,0.00018944,2]
[335560792,1724329842327,-500.0,0.00018944,2]
[335560793,1724329842345,-457.65870137,0.00018944,2]
[335560794,1724329842355,-500.0,0.00018944,2]
[335560795,1724329842364,-369.91551788,0.00018944,2]
[335560796,1724329842374,-540.78442383,0.00018944,2]
[335560797,1724329842383,-500.0,0.00018944,2]
[335560798,1724329842393,-614.62895406,0.00018944,2]
[335560799,1724329842403,-500.0,0.00018944,2]
[335560800,1724329842412,-500.0,0.00018944,2]
[335560801,1724329842422,-500.0,0.00018944,2]
[335560802,1724329842431,-500.0,0.00018944,2]
[335560803,1724329842441,-186560.09152303,0.00018945,2]
[335560804,1724329842450,-344.385119,0.00018945,2]
[335560805,1724329842460,-344.385119,0.00018945,2]
[335560806,1724329842469,-231.421078,0.00018945,2]
[335560807,1724329842479,-231.421078,0.00018945,2]
[335560808,1724329842489,-155.571518,0.00018945,2]
[335560809,1724329842498,-155.571518,0.00018945,2]
[335560810,1724329842508,-32988.40127749,0.00018951,2]
[335560811,1724329842641,-151.0,0.00018951,2]
[335560812,1724329842652,-151.0,0.00018951,2]
[335560813,1724329842662,-464.958074,0.00018951,2]
[335560814,1724329842672,-151.0,0.00018951,2]
[335560815,1724329842682,-464.958074,0.00018951,2]
[335560816,1724329842692,-1093248.71241,0.00018999,2]
[335560817,1724329842702,-1000.0,0.00019,19]
[335560818,1724329842711,-151.0,0.00019,2]
[335560819,1724329842721,-151.0,0.00019,2]
[335560820,1724329842730,-1238.642699,0.00019,2]
[335560821,1724329842740,-1238.642699,0.00019,2]
[335560822,1724329842749,-221.585542,0.00019,2]
[335560823,1724329842759,-237.194709,0.00019,2]
[335560824,1724329842769,-221.585542,0.00019,2]
[335560825,1724329842778,-237.194709,0.00019,2]
[335560826,1724329842788,-12045.39303952,0.00019,2]
[335560827,1724329842798,-709.658148,0.00019,2]
[335560828,1724329842808,-709.658148,0.00019,2]
[335560829,1724329842817,-163.0,0.0001905,2]
[335560830,1724329842827,-4274.24279612,0.00019055,2]
[335560831,1724329842845,-4175.79920833,0.00019055,2]
[335560833,1724329842855,-16900.0840089,0.00019056,2]
[335560835,1724329842865,-222.206416,0.00019065,2]
[335560836,1724329842874,-222.206416,0.00019065,2]
[335560837,1724329842885,-151.0,0.00019065,2]
[335560838,1724329842895,-903.716368,0.00019065,2]
[335560839,1724329842905,-903.716368,0.00019065,2]
[335560840,1724329842915,-935.188637,0.00019065,2]
[335560841,1724329842925,-935.188637,0.00019065,2]
[335560842,1724329842939,-151.0,0.00019065,2]
[335560843,1724329842949,-344.385119,0.00019065,2]
[335560844,1724329842960,-164.727457,0.00019065,2]
[335560845,1724329842971,-344.385119,0.00019065,2]
[335560846,1724329842983,-164.727457,0.00019065,2]
[335560847,1724329842992,-231.421078,0.00019065,2]
[335560848,1724329843003,-356.014522,0.00019065,2]
[335560849,1724329843013,-5.07057473,0.00019065,2]
[335560856,1724329843995,-933.89722372,0.00012898,2]
[335560857,1724329844005,-154.76012181,0.00013051,2]
[335560858,1724329844017,-158.15745652,0.00013477,2]
[335560859,1724329844027,-2116.77536939,0.00014007,2]
[335560860,1724329844037,-151.0,0.00018748,2]
[335560861,1724329844047,-151.737301,0.00018851,2]
[335560862,1724329844058,-610.99155086,0.00018944,2]
[335560863,1724329844067,-610.99155086,0.00018944,2]
[335560864,1724329844076,-610.99155086,0.00018944,2]
[335560865,1724329844088,-610.99155086,0.00018944,2]
[335560866,1724329844097,-610.99155086,0.00018944,2]
[335560867,1724329844107,-610.99155086,0.00018944,2]
[335560868,1724329844116,-610.99155086,0.00018944,2]
[335560869,1724329844125,-610.99155086,0.00018944,2]
[335560870,1724329844135,-610.99155086,0.00018944,2]
[335560871,1724329844145,-610.99155086,0.00018944,2]
[335560872,1724329844154,-610.99155086,0.00018944,2]
[335560873,1724329844164,-18658.06290956,0.00018999,9]
[335560874,1724329844173,-226.35050327,0.00019065,2]
[335560875,1724329844182,-356.014522,0.00019065,2]
[335560876,1724329844192,-155.571518,0.00019065,2]
[335560877,1724329844202,-155.571518,0.00019065,2]
[335560878,1724329844211,-190.403436,0.00019066,2]
[335560879,1724329844220,-190.403436,0.00019066,2]
[335560880,1724329844229,-169.226502,0.00019066,2]
[335560881,1724329844239,-502.225627,0.00019066,2]
[335560882,1724329844248,-1094.53334,0.00019066,2]
[335560883,1724329844257,-169.226502,0.00019066,2]
[335560884,1724329844267,-502.225627,0.00019066,2]
[335560885,1724329844276,-1094.53334,0.00019066,2]
[335560886,1724329844286,-151.0,0.00019066,2]
[335560887,1724329844295,-151.0,0.00019066,2]
[335560888,1724329844304,-151.0,0.00019066,2]
[335560889,1724329844314,-151.0,0.00019066,2]
[335560890,1724329844324,-151.0,0.00019066,2]
[335560891,1724329844335,-230.496432,0.00019066,2]
[335560892,1724329844344,-230.496432,0.00019066,2]
[335560893,1724329844353,-151.0,0.00019066,2]
[335560894,1724329844362,-151.0,0.00019066,2]
[335560895,1724329844371,-151.0,0.00019066,2]
[335560896,1724329844380,-151.0,0.00019066,2]
[335560897,1724329844390,-151.0,0.00019066,2]
[335560898,1724329844399,-151.0,0.00019066,2]
[335560899,1724329844409,-1238.642699,0.00019066,2]
[335560900,1724329844418,-1238.642699,0.00019066,2]
[335560901,1724329844427,-151.0,0.00019066,2]
[335560902,1724329844437,-221.585542,0.00019066,2]
[335560903,1724329844447,-222.206416,0.00019066,2]
[335560904,1724329844456,-237.194709,0.00019066,2]
[335560905,1724329844465,-221.585542,0.00019066,2]
[335560906,1724329844474,-222.206416,0.00019066,2]
[335560907,1724329844483,-237.194709,0.00019066,2]
[335560908,1724329844493,-151.0,0.00019066,2]
[335560909,1724329844502,-903.716368,0.00019066,2]
[335560910,1724329844513,-903.716368,0.00019066,2]
[335560911,1724329844522,-935.188637,0.00019066,2]
[335560912,1724329844531,-151.0,0.00019066,2]
[335560913,1724329844540,-935.188637,0.00019066,2]
[335560914,1724329844550,-709.658148,0.00019066,2]
[335560915,1724329844559,-709.658148,0.00019066,2]
[335560916,1724329844568,-464.958074,0.00019066,2]
[335560917,1724329844578,-151.0,0.00019066,2]
[335560918,1724329844588,-151.0,0.00019066,2]
[335560919,1724329844597,-464.958074,0.00019066,2]
[335560920,1724329844607,-164.727457,0.00019066,2]
[335560921,1724329844616,-164.727457,0.00019066,2]
[335560922,1724329844625,-356.014522,0.00019066,2]
[335560923,1724329844635,-356.014522,0.00019066,2]
[335560924,1724329844644,-150.01,0.00019076,2]
[335560925,1724329844779,-4598.96225329,0.00019076,2]
[335560926,1724329844789,-199.528847,0.00019076,2]
[335560927,1724329844798,-151.0,0.00019076,2]
[335560928,1724329844807,-151.0,0.00019076,2]
[335560929,1724329844817,-13258.21728394,0.00019078,2]
[335560930,1724329844891,-18057.09418142,0.00019078,2]
[335560931,1724329844903,-151.0,0.0001909,2]
[335560932,1724329844914,-151.0,0.0001909,2]
[335560933,1724329844925,-151.0,0.0001909,2]
[335560934,1724329844939,-812.529899,0.0001909,2]
[335560935,1724329844950,-812.529899,0.0001909,2]
[335560936,1724329844960,-174.134418,0.0001909,2]
[335560937,1724329844969,-174.134418,0.0001909,2]
[335560938,1724329844978,-167.093676,0.0001909,2]
[335560939,1724329844988,-151.0,0.0001909,2]
[335560940,1724329844997,-167.093676,0.0001909,2]
[335560941,1724329845006,-570.290646,0.0001909,2]
[335560942,1724329845016,-570.290646,0.0001909,2]
[335560943,1724329845025,-664.99075,0.0001909,2]
[335560944,1724329845036,-664.99075,0.0001909,2]
[335560945,1724329845046,-150.112233,0.000191,2]
[335560946,1724329845058,-150.112233,0.000191,2]
[335560947,1724329845068,-150.112233,0.000191,2]
[335560948,1724329845077,-150.112233,0.000191,2]
[335560949,1724329845087,-150.112233,0.000191,2]
[335560950,1724329845096,-150.112233,0.000191,2]
[335560951,1724329845106,-159.644512,0.000191,2]
[335560952,1724329845115,-500.0,0.00019173,2]
[335560953,1724329845125,-190.403436,0.00019173,2]
[335560954,1724329845134,-190.403436,0.00019173,2]
[335560955,1724329845143,-169.226502,0.00019173,2]
[335560956,1724329845153,-502.225627,0.00019173,2]
[335560957,1724329845162,-1094.53334,0.00019173,2]
[335560958,1724329845172,-169.226502,0.00019173,2]
[335560959,1724329845181,-502.225627,0.00019173,2]
[335560960,1724329845191,-1094.53334,0.00019173,2]
[335560961,1724329845200,-151.0,0.00019173,2]
[335560962,1724329845209,-151.0,0.00019173,2]
[335560963,1724329845218,-151.0,0.00019173,2]
[335560964,1724329845227,-151.0,0.00019173,2]
[335560965,1724329845236,-238.550289,0.00019173,2]
[335560966,1724329845246,-230.496432,0.00019173,2]
[335560967,1724329845255,-230.496432,0.00019173,2]
[335560968,1724329845265,-151.0,0.00019173,2]
[335560969,1724329845274,-151.0,0.00019173,2]
[335560970,1724329845284,-151.0,0.00019173,2]
[335560971,1724329845293,-168.626599,0.00019173,2]
[335560972,1724329845302,-151.0,0.00019173,2]
[335560973,1724329845312,-205.15167991,0.00019177,2]
[335560997,1724330117236,273.37336231,9.9e-05,2]
[335560998,1724330151993,4998.35723065,0.00027,120]
[335561001,1724330322461,10000.0,0.00025,60]
[335561003,1724330344764,10000.0,0.00025,60]
[335561098,1724330433880,10000.0,0.00025,60]
[335561099,1724330462576,10000.0,0.00025,60]
[335561160,1724331032505,-150.3,0.00010959,2]
[335561162,1724331032515,-751.5,0.00010959,2]
[335561164,1724331032524,-250.0,0.00011568,2]
[335561166,1724331032533,-250.0,0.00011599,2]
[335561168,1724331032542,-250.0,0.00011631,2]
[335561170,1724331032553,-250.0,0.00011663,2]
[335561172,1724331032564,-250.0,0.00011695,2]
[335561174,1724331032573,-250.0,0.00011726,2]
[335561176,1724331032582,-250.0,0.00011758,2]
[335561178,1724331032591,-250.0,0.0001179,2]
[335561180,1724331032600,-250.0,0.00011822,2]
[335561182,1724331032610,-300.0,0.00011841,2]
[335561184,1724331032619,-300.0,0.00011841,2]
[335561186,1724331032628,-6956.15060093,0.00011842,2]
[335561241,1724331038546,-1371.40881746,0.00011842,2]
[335561244,1724331038558,-30411.0,0.00011842,2]
[335561560,1724331043600,-593.00795533,0.00011842,2]
[335561568,1724331043667,-610.61103073,0.00011842,2]
[335561573,1724331043708,-1583.90615459,0.00011842,2]
[335561577,1724331043717,-250.0,0.00011853,2]
[335561582,1724331043727,-250.0,0.00011885,2]
[335561586,1724331043737,-73.43625726,0.00011917,2]
[335561753,1724331559740,1219.51346664,0.00027,120]
[335561803,1724332140310,154.76012181,9.899e-05,2]
[335561805,1724332195976,4619.11395466,9.899e-05,2]
[335561806,1724332197718,3612.98227201,9.899e-05,2]
[335561807,1724332199503,24900.0,9.552e-05,2]
[335561810,1724332230717,218.66051313,9.899e-05,2]
[335561858,1724332232366,-155.06780628,0.00010081,2]
[335561859,1724332232376,-272.45028794,0.0001026,2]
[335561860,1724332232386,-250.0,0.0001039,2]
[335561861,1724332232396,-250.0,0.00010419,2]
[335561862,1724332232406,-250.0,0.00010447,2]
[335561863,1724332232416,-250.0,0.00010476,2]
[335561864,1724332232426,-300.0,0.00010504,2]
[335561865,1724332232436,-250.0,0.00010504,2]
[335561866,1724332232445,-250.0,0.00010533,2]
[335561867,1724332232455,-250.0,0.00010561,2]
[335561868,1724332232465,-250.0,0.0001059,2]
[335561869,1724332232475,-250.0,0.00010618,2]
[335561870,1724332232485,-250.0,0.00010647,2]
[335561871,1724332232494,-250.0,0.00010675,2]
[335561872,1724332232504,-300.0,0.000107,2]
[335561873,1724332232513,-7648.18856297,0.00010701,2]
[335561890,1724332237805,-29625.82578086,0.00010701,2]
[335561891,1724332237862,-7521.71893087,0.00010701,2]
[335561892,1724332237872,-250.0,0.00010704,2]
[335561893,1724332237882,-250.0,0.00010732,2]
[335561894,1724332237892,-250.0,0.00010761,2]
[335561895,1724332237901,-250.0,0.00010789,2]
[335561896,1724332237911,-250.0,0.00010818,2]
[335561897,1724332237920,-250.0,0.00010846,2]
[335561898,1724332237929,-250.0,0.00010875,2]
[335561899,1724332237939,-250.0,0.00010903,2]
[335561900,1724332237949,-250.0,0.00010932,2]
[335561901,1724332237958,-420.0,0.00011554,2]
[335561902,1724332237967,-4814.78550705,0.00011683,2]
[335561903,1724332237977,-154.76012181,0.00011999,2]
[335561904,1724332237986,-168.38141783,0.0001212,2]
[335561905,1724332237996,-2166.4854483,0.00012356,2]
[335561906,1724332238005,-342.6945234,0.00012689,2]
[335561907,1724332238015,-587.0,0.00012709,2]
[335561908,1724332238025,-500.0,0.00012873,2]
[335561909,1724332238037,-2984.98391444,0.00012898,2]
[335561910,1724332238046,-1587.58152706,0.000129,2]
[335561911,1724332238055,-521.35824671,0.00012934,2]
[335561912,1724332238064,-422.36012849,0.00012985,2]
[335561913,1724332238073,-160.46171883,0.00012985,2]
[335561914,1724332238085,-301.56944091,0.00012991,2]
[335561915,1724332238096,-198.61632498,0.00013025,2]
[335561916,1724332238106,-1000.0,0.00013421,2]
[335561917,1724332238116,-303.94564455,0.00013477,2]
[335561918,1724332238128,-1587.58152704,0.00013537,2]
[335561919,1724332238139,-154.76012181,0.00013599,2]
[335561920,1724332238148,-30950.36516973,0.00013688,2]
[335561921,1724332238170,-2298.87930726,0.00013688,2]
[335561941,1724332240119,2113.01506767,9.899e-05,2]
[335561943,1724332240238,-37464.55402637,0.00013688,2]
[335561974,1724332243147,-369.06255427,0.00013688,2]
[335561976,1724332243212,-1823.73550554,0.00013688,2]
[335562002,1724332245787,-88614.22568383,0.00013688,2]
[335562004,1724332245797,-1547.87289514,0.00013697,2]
[335562006,1724332245809,-270.56328853,0.00013698,2]
[335562008,1724332245818,-178.030456,0.00013699,2]
[335562009,1724332245828,-194.74112543,0.00013699,2]
[335562011,1724332245838,-500.0,0.00013699,2]
[335562014,1724332245847,-323.40666229,0.00013699,2]
[335562016,1724332245857,-500.0,0.00013699,2]
[335562018,1724332245867,-500.0,0.00013699,2]
[335562020,1724332245879,-500.0,0.00013699,2]
[335562022,1724332245889,-500.0,0.00013699,2]
[335562024,1724332245899,-500.0,0.00013699,2]
[335562026,1724332245911,-500.0,0.00013699,2]
[335562029,1724332245922,-823.0,0.0001398,2]
[335562031,1724332245932,-234.85019781,0.00014,2]
[335562033,1724332245942,-810.66321171,0.00014245,2]
[335562035,1724332245951,-426.453932,0.00014247,2]
[335562037,1724332245962,-260.526927,0.00014247,2]
[335562039,1724332245971,-159.644509,0.000149,2]
[335562041,1724332245980,-1152.0,0.00015378,2]
[335562043,1724332245989,-150.112233,0.000155,2]
[335562044,1724332245999,-150.112233,0.000161,2]
[335562046,1724332246008,-1587.58152704,0.00016469,2]
[335562049,1724332246018,-150.112233,0.000167,2]
[335562051,1724332246029,-150.112233,0.000173,2]
[335562053,1724332246038,-153.0,0.00017342,2]
[335562055,1724332246047,-153.0,0.00017369,2]
[335562057,1724332246058,-153.0,0.00017369,2]
[335562059,1724332246068,-306.0,0.00017397,2]
[335562061,1724332246078,-207.6636928,0.00017616,2]
[335562063,1724332246089,-207.6636928,0.00017616,2]
[335562065,1724332246104,-207.6636928,0.00017616,2]
[335562067,1724332246113,-207.6636928,0.00017616,2]
[335562068,1724332246124,-207.6636928,0.00017616,2]
[335562069,1724332246135,-207.6636928,0.00017616,2]
[335562070,1724332246144,-207.6636928,0.00017616,2]
[335562071,1724332246155,-207.6636928,0.00017616,2]
[335562072,1724332246164,-207.6636928,0.00017616,2]
[335562073,1724332246174,-100000.0,0.00017737,2]
[335562074,1724332246183,-2237.99967605,0.00017899,2]
[335562075,1724332246193,-150.112233,0.000179,2]
[335562076,1724332246202,-500.0,0.00017988,2]
[335562077,1724332246212,-500.0,0.00017988,2]
[335562078,1724332246222,-369.91551788,0.00017988,2]
[335562079,1724332246234,-320.36109096,0.00017988,2]
[335562080,1724332246244,-500.0,0.00017988,2]
[335562081,1724332246253,-500.0,0.00017988,2]
[335562083,1724332246263,-500.0,0.00017988,2]
[335562085,1724332246273,-240.78442383,0.00017988,2]
[335562087,1724332246282,-500.0,0.00017988,2]
[335562089,1724332246291,-500.0,0.00017988,2]
[335562091,1724332246300,-500.0,0.00017988,2]
[335562093,1724332246310,-500.0,0.00017988,2]
[335562095,1724332246319,-500.0,0.00017988,2]
[335562097,1724332246328,-604.80531776,0.00017988,2]
[335562099,1724332246339,-107834.47227477,0.00017989,2]
[335562107,1724332246404,-2478.51297866,0.00017989,2]
[335562110,1724332246421,-1599.581059,0.00017989,2]
[335562112,1724332246432,-2037.35885071,0.00017989,2]
[335562114,1724332246443,-2135.67124547,0.00017989,2]
[335562234,1724332297975,-227.67,0.00010959,2]
[335562235,1724332298004,-189.72,0.00010959,2]
[335562236,1724332298034,-158.1,0.00010959,2]
[335562237,1724332298066,-790.54,0.00010959,2]
[335562238,1724332298096,-569.6147727,0.00011578,2]
[335562239,1724332298126,-226.77809033,0.00011578,2]
[335562240,1724332298157,-181.28685074,0.00011578,2]
[335562241,1724332298185,-1766.63770101,0.00011578,2]
[335562242,1724332298214,-174.85504165,0.00011578,2]
[335562243,1724332298243,-196.83090407,0.00011578,2]
[335562244,1724332298270,-155.00412937,0.00011578,2]
[335562245,1724332298300,-817.60790766,0.00011578,2]
[335562246,1724332298331,-2109.40480157,0.00011578,2]
[335562247,1724332298362,-14074.77085236,0.00011578,2]
[335562248,1724332298600,-6722.35789708,0.00011578,2]
[335562249,1724332335019,-320.30409158,0.00011409,2]
[335562250,1724332335048,-7014.13255051,0.00011409,2]
[335562251,1724332335077,-154.99369496,0.00011409,2]
[335562252,1724332335107,-218.59891045,0.00011409,2]
[335562253,1724332335135,-422.36012849,0.00011409,2]
[335562254,1724332335165,-2166.4854483,0.00011409,2]
[335562255,1724332335193,-155.32504483,0.00011409,2]
[335562256,1724332335222,-688.74575077,0.00011409,2]
[335562257,1724332335251,-2143.02877073,0.00011409,2]
[335562258,1724332335671,-300.0,0.00011577,2]
[335562259,1724332335702,-156.87056893,0.00011578,2]
[335562260,1724332335734,-8845.25511796,0.00011578,2]
[335562261,1724332335766,-157.11116113,0.00011578,2]
[335562262,1724332335796,-780.13119624,0.00011578,2]
[335562263,1724332335833,-1453.31513024,0.00011578,2]
[335562264,1724332336315,-46.68486976,0.00011409,2]
[335562267,1724332381407,-810.99895401,0.00010958,2]
[335562268,1724332381437,-154.76012181,0.00011409,2]
[335562269,1724332381470,-157.14223377,0.00011409,2]
[335562270,1724332381501,-544.06785329,0.00011409,2]
[335562271,1724332381530,-404.5518179,0.00011409,2]
[335562272,1724332381560,-246.66928391,0.00011409,2]
[335562273,1724332381589,-188.58516866,0.00011409,2]
[335562274,1724332381618,-303.88450231,0.00011409,2]
[335562275,1724332381650,-158.1221147,0.00011409,2]
[335562276,1724332381680,-190.09307092,0.00011409,2]
[335562277,1724332381708,-210.105085,0.00011409,2]
[335562278,1724332381737,-2712.87069354,0.00011409,2]
[335562279,1724332381771,-160.46171883,0.00011409,2]
[335562280,1724332381803,-154.77557542,0.00011578,2]
[335562281,1724332381833,-9175.29413049,0.00011578,2]
[335562282,1724332381869,-1672.36760276,0.00011578,2]
[335562283,1724332381897,-154.76012181,0.00011842,2]
[335562284,1724332381927,-493.36312925,0.0001295,2]
[335562285,1724332381957,-934.07929589,0.00013697,2]
[335562286,1724332381987,-2683.85263008,0.00013971,2]
[335562287,1724332382515,-300.0,0.00011408,2]
[335562288,1724332382529,-6678.3897913,0.00013971,2]
[335562293,1724332420066,-301.08024,0.00010958,2]
[335562295,1724332478029,1671.98997101,0.00010958,2]
[335562297,1724332508950,396.01822435,0.00010958,2]
[335562300,1724332606857,-396.01822435,0.00013282,2]
[335562301,1724332606887,-192.05521967,0.00013499,2]
[335562302,1724332606919,-9662.24242138,0.00013596,2]
[335562303,1724332606951,-300.0,0.00013596,2]
[335562304,1724332606979,-2128.61939316,0.00013688,2]
[335562305,1724332607007,-1613.91660303,0.00013688,2]
[335562306,1724332607036,-898.81779354,0.00013697,2]
[335562307,1724332607065,-601.94985179,0.00013697,2]
[335562308,1724332607095,-665.53459983,0.00013698,2]
[335562309,1724332607125,-309.52024362,0.00013698,2]
[335562310,1724332607154,-266.78584374,0.00013698,2]
[335562311,1724332607182,-155.03345781,0.00013698,2]
[335562312,1724332607210,-413.70707529,0.00013698,2]
[335562313,1724332607238,-296.07210493,0.00013698,2]
[335562314,1724332607267,-342.6945234,0.00013698,2]
[335562315,1724332607294,-728.8710597,0.00013698,2]
[335562316,1724332607322,-223.54518659,0.00013698,2]
[335562317,1724332607352,-154.80906098,0.00013698,2]
[335562318,1724332607387,-194.83065114,0.00013699,2]
[335562319,1724332607417,-211.51810626,0.00013792,2]
[335562320,1724332607606,-154.77557542,0.00013792,2]
[335562321,1724332607635,-810.32746941,0.00013792,2]
[335562322,1724332607662,-301.56944091,0.00013971,2]
[335562323,1724332607690,-474.67337695,0.00013971,2]
[335562324,1724332607717,-154.83738367,0.00013971,2]
[335562325,1724332607745,-933.71515155,0.00013971,2]
[335562326,1724332607773,-157.08247033,0.00013971,2]
[335562327,1724332607803,-404.39386824,0.00013971,2]
[335562328,1724332607834,-154.87534708,0.00013971,2]
[335562331,1724332687944,396.01822435,0.00013971,2]
[335562332,1724332694643,1449.01858577,0.00013182,2]
[335562337,1724332785931,417.04465219,0.00013182,2]
[335562338,1724332817173,1132.33553015,0.00013971,2]
[335562339,1724332844506,244.01680632,0.000131,2]
[335562343,1724332988038,3620.21503602,0.000131,2]
[335562345,1724332994143,404.65460675,0.000131,2]